[Event "Live Chess"]
[Site "Chess.com"]
[Date "2024.06.01"]
[Round "-"]
[White "vincents82"]
[Black "koekoekoe"]
[Result "1-0"]
[WhiteElo "2095"]
[BlackElo "2044"]
[TimeControl "300"]
[EndTime "13:01:24 PDT"]
[Termination "vincents82 won by checkmate"]

1. e4 {[%clk 0:04:51.2]} 1... d5 {[%clk 0:04:59.9]} 2. exd5 {[%clk 0:04:50.1]}
2... Qxd5 {[%clk 0:04:59.5]} 3. Nc3 {[%clk 0:04:49.3]} 3... Qa5 {[%clk 0:04:59]}
4. d4 {[%clk 0:04:48.4]} 4... Nf6 {[%clk 0:04:58.4]} 5. Bc4 {[%clk 0:04:47.8]}
5... Bg4 {[%clk 0:04:56.6]} 6. f3 {[%clk 0:04:45.1]} 6... Bh5 {[%clk 0:04:55.6]}
7. Bd2 {[%clk 0:04:44.6]} 7... c6 {[%clk 0:04:54.6]} 8. Nd5 {[%clk 0:04:42.1]}
8... Qd8 {[%clk 0:04:51.3]} 9. Nxf6+ {[%clk 0:04:41.3]} 9... exf6 {[%clk
0:04:51.2]} 10. c3 {[%clk 0:04:40]} 10... Nd7 {[%clk 0:04:46.8]} 11. Qb3 {[%clk
0:04:38.9]} 11... Nb6 {[%clk 0:04:44.1]} 12. O-O-O {[%clk 0:04:33.8]} 12... Nxc4
{[%clk 0:04:37.4]} 13. Qxc4 {[%clk 0:04:32]} 13... Be7 {[%clk 0:04:35.5]} 14.
Nh3 {[%clk 0:04:29.9]} 14... O-O {[%clk 0:04:30.3]} 15. Nf4 {[%clk 0:04:28.1]}
15... Bg6 {[%clk 0:04:29.2]} 16. Nxg6 {[%clk 0:04:27.3]} 16... hxg6 {[%clk
0:04:28.7]} 17. h4 {[%clk 0:04:26.3]} 17... Qd5 {[%clk 0:04:22]} 18. Qxd5 {[%clk
0:04:24.3]} 18... cxd5 {[%clk 0:04:21.9]} 19. Rde1 {[%clk 0:04:22.3]} 19... Bd6
{[%clk 0:04:19.7]} 20. h5 {[%clk 0:04:20.3]} 20... gxh5 {[%clk 0:04:18.6]} 21.
Rxh5 {[%clk 0:04:18.5]} 21... g6 {[%clk 0:04:14.1]} 22. Rxd5 {[%clk 0:04:16.9]}
22... Bg3 {[%clk 0:04:11.8]} 23. Re7 {[%clk 0:04:14.6]} 23... Rfe8 {[%clk
0:04:06.9]} 24. Rxb7 {[%clk 0:04:13.2]} 24... Re2 {[%clk 0:04:02.3]} 25. Rdd7
{[%clk 0:04:11]} 25... Rf8 {[%clk 0:03:57.1]} 26. Rxa7 {[%clk 0:04:09.5]} 26...
Rxg2 {[%clk 0:03:56.5]} 27. b4 {[%clk 0:04:05.5]} 27... Rg1+ {[%clk 0:03:48.9]}
28. Kc2 {[%clk 0:04:04.3]} 28... Rg2 {[%clk 0:03:48.5]} 29. Kd3 {[%clk
0:03:59.7]} 29... Rf2 {[%clk 0:03:44.9]} 30. Bh6 {[%clk 0:03:57.8]} 30... Re8
{[%clk 0:03:30.1]} 31. Rxf7 {[%clk 0:03:53.7]} 31... Rxf3+ {[%clk 0:03:28.4]}
32. Kc4 {[%clk 0:03:52.6]} 32... Rc8+ {[%clk 0:03:25.7]} 33. Kb5 {[%clk
0:03:51.7]} 33... Rf5+ {[%clk 0:03:21]} 34. Ka4 {[%clk 0:03:49]} 34... Rf2
{[%clk 0:03:10.2]} 35. Rg7+ {[%clk 0:03:47.3]} 35... Kh8 {[%clk 0:03:09]} 36.
Rh7+ {[%clk 0:03:45.6]} 36... Kg8 {[%clk 0:03:07.7]} 37. Rag7+ {[%clk
0:03:44.5]} 37... Kf8 {[%clk 0:03:07.2]} 38. Rh8# {[%clk 0:03:44]} 1-0

[Event "Live Chess"]
[Site "Chess.com"]
[Date "2024.06.01"]
[Round "-"]
[White "mrsmarple1968"]
[Black "MaksymYurii"]
[Result "1-0"]
[WhiteElo "1763"]
[BlackElo "933"]
[TimeControl "300"]
[EndTime "13:01:30 PDT"]
[Termination "mrsmarple1968 won on time"]

1. e4 {[%clk 0:04:56.8]} 1... e5 {[%clk 0:04:59.4]} 2. Bc4 {[%clk 0:04:51]} 2...
Nf6 {[%clk 0:04:56.6]} 3. d3 {[%clk 0:04:49.3]} 3... Bc5 {[%clk 0:04:54.5]} 4.
Nf3 {[%clk 0:04:47.2]} 4... d6 {[%clk 0:04:43.3]} 5. O-O {[%clk 0:04:43.5]} 5...
Nc6 {[%clk 0:04:40.6]} 6. c3 {[%clk 0:04:40.5]} 6... Be6 {[%clk 0:04:32.7]} 7.
Bb5 {[%clk 0:04:37.8]} 7... a6 {[%clk 0:04:30.6]} 8. Ba4 {[%clk 0:04:35.8]} 8...
b5 {[%clk 0:04:29.5]} 9. Bc2 {[%clk 0:04:34.6]} 9... Bg4 {[%clk 0:04:22.2]} 10.
Nbd2 {[%clk 0:04:31.5]} 10... Bxf3 {[%clk 0:04:16.6]} 11. Nxf3 {[%clk
0:04:26.2]} 11... Ng4 {[%clk 0:04:13.7]} 12. h3 {[%clk 0:04:22.3]} 12... h5
{[%clk 0:04:12.1]} 13. d4 {[%clk 0:04:15.6]} 13... exd4 {[%clk 0:04:09.7]} 14.
cxd4 {[%clk 0:04:12.9]} 14... Nxd4 {[%clk 0:04:08.3]} 15. Nxd4 {[%clk
0:04:10.7]} 15... Bxd4 {[%clk 0:04:02.9]} 16. Qxd4 {[%clk 0:04:08.7]} 16... Qd7
{[%clk 0:03:43.7]} 17. Bf4 {[%clk 0:03:51.8]} 17... O-O-O {[%clk 0:03:33.7]} 18.
Rfd1 {[%clk 0:03:33]} 18... Kb8 {[%clk 0:03:10.8]} 19. e5 {[%clk 0:03:11.2]}
19... d5 {[%clk 0:02:47]} 20. Rac1 {[%clk 0:03:01.9]} 20... c6 {[%clk
0:02:13.7]} 21. Qb6+ {[%clk 0:02:48.4]} 21... Qb7 {[%clk 0:02:06.3]} 22. Qxb7+
{[%clk 0:02:45.9]} 22... Kxb7 {[%clk 0:02:05.1]} 23. hxg4 {[%clk 0:02:40.4]}
23... hxg4 {[%clk 0:02:01.9]} 24. Bf5 {[%clk 0:02:32.9]} 24... Rh4 {[%clk
0:01:59.8]} 25. Bg3 {[%clk 0:02:29.4]} 25... Rh6 {[%clk 0:01:51.2]} 26. Bxg4
{[%clk 0:02:27.5]} 26... Rdh8 {[%clk 0:01:48]} 27. f3 {[%clk 0:02:24.4]} 27...
Rg6 {[%clk 0:01:38.7]} 28. Kf2 {[%clk 0:02:04.8]} 28... f6 {[%clk 0:01:23.9]}
29. exf6 {[%clk 0:01:57.3]} 29... gxf6 {[%clk 0:01:20.8]} 30. Bd7 {[%clk
0:01:54.2]} 30... Rhg8 {[%clk 0:01:14.8]} 31. Bxc6+ {[%clk 0:01:34.7]} 31... Kb6
{[%clk 0:01:11.6]} 32. Bf4 {[%clk 0:01:18.5]} 32... Rxg2+ {[%clk 0:01:08]} 33.
Ke1 {[%clk 0:01:15.1]} 33... Rg1+ {[%clk 0:01:06.6]} 34. Ke2 {[%clk 0:01:13.2]}
34... R1g2+ {[%clk 0:01:03.9]} 35. Kd3 {[%clk 0:01:10.4]} 35... Rxb2 {[%clk
0:00:54.9]} 36. Bxd5 {[%clk 0:01:07.7]} 36... Rd8 {[%clk 0:00:51]} 37. Be3+
{[%clk 0:01:06]} 37... Ka5 {[%clk 0:00:48.3]} 38. Ke4 {[%clk 0:01:02.2]} 38...
Rb4+ {[%clk 0:00:43.7]} 39. Rd4 {[%clk 0:00:33.9]} 39... f5+ {[%clk 0:00:33.8]}
40. Kd3 {[%clk 0:00:25.6]} 40... Rxd4+ {[%clk 0:00:25.7]} 41. Kxd4 {[%clk
0:00:24.4]} 41... Rh8 {[%clk 0:00:16.5]} 42. Ke5 {[%clk 0:00:23.1]} 42... Re8+
{[%clk 0:00:14.8]} 43. Kd4 {[%clk 0:00:20]} 43... Rh8 {[%clk 0:00:12.7]} 44.
Bd2+ {[%clk 0:00:19.1]} 44... Ka4 {[%clk 0:00:09.8]} 45. Bc3 {[%clk 0:00:17.9]}
45... b4 {[%clk 0:00:07.3]} 46. Bb2 {[%clk 0:00:15.1]} 46... Rh4+ {[%clk
0:00:04.9]} 47. Ke5 {[%clk 0:00:12.9]} 47... Rh5 {[%clk 0:00:03.2]} 48. Bb3+
{[%clk 0:00:11.6]} 48... Kb5 {[%clk 0:00:00.8]} 49. Bc4+ {[%clk 0:00:09.6]}
49... Kc6 {[%clk 0:00:00.3]} 50. Bb3+ {[%clk 0:00:07.8]} 1-0

[Event "Live Chess"]
[Site "Chess.com"]
[Date "2024.06.01"]
[Round "-"]
[White "MaximKovalenko83"]
[Black "Thebigsqueeze"]
[Result "0-1"]
[WhiteElo "2236"]
[BlackElo "2298"]
[TimeControl "300"]
[EndTime "13:01:39 PDT"]
[Termination "Thebigsqueeze won by resignation"]

1. d4 {[%clk 0:04:57]} 1... Nf6 {[%clk 0:04:58.3]} 2. Nf3 {[%clk 0:04:55]} 2...
e6 {[%clk 0:04:56.8]} 3. c4 {[%clk 0:04:54.4]} 3... b6 {[%clk 0:04:52.6]} 4. Nc3
{[%clk 0:04:53.9]} 4... Bb7 {[%clk 0:04:51.3]} 5. Bg5 {[%clk 0:04:53.3]} 5...
Bb4 {[%clk 0:04:49.1]} 6. e3 {[%clk 0:04:52.5]} 6... O-O {[%clk 0:04:46.6]} 7.
Be2 {[%clk 0:04:51.3]} 7... d6 {[%clk 0:04:45.5]} 8. O-O {[%clk 0:04:49.3]} 8...
Bxc3 {[%clk 0:04:44.8]} 9. bxc3 {[%clk 0:04:48]} 9... Nbd7 {[%clk 0:04:44.1]}
10. Nd2 {[%clk 0:04:44.8]} 10... e5 {[%clk 0:04:42.1]} 11. Bf3 {[%clk
0:04:42.8]} 11... Qc8 {[%clk 0:04:36.6]} 12. Bxb7 {[%clk 0:04:39.3]} 12... Qxb7
{[%clk 0:04:34.7]} 13. Qc2 {[%clk 0:04:35.9]} 13... h6 {[%clk 0:03:57.7]} 14.
Bh4 {[%clk 0:04:03.6]} 14... Rae8 {[%clk 0:03:29.6]} 15. Rae1 {[%clk 0:03:43.2]}
15... Qc6 {[%clk 0:03:10.7]} 16. e4 {[%clk 0:03:29.7]} 16... g5 {[%clk
0:03:02.8]} 17. Bg3 {[%clk 0:03:28.1]} 17... Kg7 {[%clk 0:03:00.1]} 18. f3
{[%clk 0:03:25.5]} 18... Rh8 {[%clk 0:02:50.7]} 19. Qd3 {[%clk 0:03:22.5]} 19...
Nf8 {[%clk 0:02:40.2]} 20. Rb1 {[%clk 0:03:14.7]} 20... Ng6 {[%clk 0:02:35.8]}
21. Rb5 {[%clk 0:03:07.6]} 21... a6 {[%clk 0:02:31.3]} 22. Rb2 {[%clk
0:03:03.9]} 22... h5 {[%clk 0:02:29.1]} 23. d5 {[%clk 0:02:57.3]} 23... Qd7
{[%clk 0:02:14.5]} 24. Rd1 {[%clk 0:02:46.4]} 24... h4 {[%clk 0:02:10.7]} 25.
Bf2 {[%clk 0:02:45.3]} 25... Nf4 {[%clk 0:02:09.5]} 26. Qf1 {[%clk 0:02:40.6]}
26... g4 {[%clk 0:02:07.3]} 27. Be3 {[%clk 0:02:34]} 27... g3 {[%clk 0:01:53]}
28. Bxf4 {[%clk 0:02:30.1]} 28... exf4 {[%clk 0:01:47.7]} 29. h3 {[%clk
0:02:29.4]} 29... Qe7 {[%clk 0:01:35.5]} 30. Nb3 {[%clk 0:02:27.8]} 30... Nd7
{[%clk 0:01:32]} 31. Nd4 {[%clk 0:02:25.2]} 31... Qf6 {[%clk 0:01:27.6]} 32. Qd3
{[%clk 0:02:16.1]} 32... Ne5 {[%clk 0:01:23.5]} 33. Nf5+ {[%clk 0:02:13.8]}
33... Qxf5 {[%clk 0:01:15.3]} 34. exf5 {[%clk 0:02:13.7]} 34... Nxd3 {[%clk
0:01:13.9]} 35. Rbd2 {[%clk 0:02:06.6]} 35... Nf2 {[%clk 0:01:07.6]} 36. Rb1
{[%clk 0:02:00.5]} 36... Re5 {[%clk 0:01:06.1]} 37. Kf1 {[%clk 0:01:51.5]} 37...
Rhe8 {[%clk 0:01:03.5]} 38. a4 {[%clk 0:01:43.5]} 38... Re3 {[%clk 0:01:01.4]}
39. Rd4 {[%clk 0:01:40.2]} 39... Nd3 {[%clk 0:00:53.7]} 40. Re4 {[%clk
0:01:37.9]} 40... R8xe4 {[%clk 0:00:50.1]} 41. fxe4 {[%clk 0:01:37.8]} 41... Kf6
{[%clk 0:00:48]} 42. Rd1 {[%clk 0:01:36.9]} 42... Ke5 {[%clk 0:00:46.1]} 43. a5
{[%clk 0:01:31.2]} 43... bxa5 {[%clk 0:00:44.8]} 44. Ra1 {[%clk 0:01:29.3]}
44... Kxe4 {[%clk 0:00:43.6]} 45. Rd1 {[%clk 0:01:27.4]} 45... a4 {[%clk
0:00:40.8]} 46. Ra1 {[%clk 0:01:26.1]} 46... a3 {[%clk 0:00:38.7]} 47. Rd1
{[%clk 0:01:25]} 47... a2 {[%clk 0:00:37.2]} 48. Ra1 {[%clk 0:01:24.1]} 48...
Re1+ {[%clk 0:00:35.6]} 49. Rxe1+ {[%clk 0:01:22]} 49... Nxe1 {[%clk 0:00:35]}
50. Kxe1 {[%clk 0:01:17.7]} 50... Kd3 {[%clk 0:00:32.8]} 0-1

[Event "Live Chess"]
[Site "Chess.com"]
[Date "2024.06.01"]
[Round "-"]
[White "gmnorfolk"]
[Black "GwaryTek"]
[Result "1-0"]
[WhiteElo "2072"]
[BlackElo "1958"]
[TimeControl "300"]
[EndTime "13:01:48 PDT"]
[Termination "gmnorfolk won by resignation"]

1. d4 {[%clk 0:04:57.9]} 1... Nf6 {[%clk 0:04:59.6]} 2. c4 {[%clk 0:04:56.6]}
2... d6 {[%clk 0:04:58.4]} 3. Nc3 {[%clk 0:04:56.1]} 3... Nbd7 {[%clk
0:04:57.7]} 4. g3 {[%clk 0:04:54.9]} 4... e5 {[%clk 0:04:56.3]} 5. Bg2 {[%clk
0:04:54.5]} 5... Be7 {[%clk 0:04:46.6]} 6. e3 {[%clk 0:04:30.2]} 6... Kf8 {[%clk
0:04:42.2]} 7. Nge2 {[%clk 0:04:28.2]} 7... g6 {[%clk 0:04:34.3]} 8. O-O {[%clk
0:04:26.8]} 8... Kg7 {[%clk 0:04:33.8]} 9. b3 {[%clk 0:04:25.5]} 9... c6 {[%clk
0:04:32.3]} 10. Bb2 {[%clk 0:04:24.9]} 10... Re8 {[%clk 0:04:30.9]} 11. f4
{[%clk 0:04:23.8]} 11... exd4 {[%clk 0:04:22.7]} 12. exd4 {[%clk 0:04:22.1]}
12... Bf8 {[%clk 0:04:18.8]} 13. f5 {[%clk 0:04:20.3]} 13... Kg8 {[%clk
0:04:06.2]} 14. Nf4 {[%clk 0:04:16.4]} 14... Bg7 {[%clk 0:04:03.4]} 15. Qf3
{[%clk 0:04:08.6]} 15... Nf8 {[%clk 0:03:47]} 16. g4 {[%clk 0:04:02]} 16... Nxg4
{[%clk 0:03:40.1]} 17. Qxg4 {[%clk 0:04:00]} 17... Bxd4+ {[%clk 0:03:35.2]} 18.
Kh1 {[%clk 0:03:59.1]} 18... Bxf5 {[%clk 0:03:28.6]} 19. Qg3 {[%clk 0:03:57.9]}
19... Re3 {[%clk 0:03:20]} 20. Rf3 {[%clk 0:03:53]} 20... Rxf3 {[%clk
0:02:50.2]} 21. Qxf3 {[%clk 0:03:51.6]} 21... Qf6 {[%clk 0:02:46.5]} 22. Rd1
{[%clk 0:03:48.6]} 22... Be5 {[%clk 0:02:31.5]} 23. Nfe2 {[%clk 0:03:34.6]}
23... Re8 {[%clk 0:02:14.8]} 24. Ng3 {[%clk 0:03:30.7]} 24... Bc2 {[%clk
0:02:01.8]} 25. Rf1 {[%clk 0:03:23.6]} 25... Qxf3 {[%clk 0:01:56.2]} 26. Bxf3
{[%clk 0:03:20.5]} 26... f5 {[%clk 0:01:53.8]} 27. Kg2 {[%clk 0:03:15.8]} 27...
Ne6 {[%clk 0:01:49.6]} 28. Nge2 {[%clk 0:03:10.2]} 28... Bd3 {[%clk 0:01:46.1]}
29. Rd1 {[%clk 0:03:02.2]} 29... Bxe2 {[%clk 0:01:38]} 30. Bxe2 {[%clk
0:03:00.7]} 30... Nf4+ {[%clk 0:01:14.2]} 31. Kf3 {[%clk 0:02:58]} 31... Nxe2
{[%clk 0:01:13.4]} 32. Re1 {[%clk 0:02:55.5]} 32... Nxc3 {[%clk 0:01:01.6]} 33.
Bxc3 {[%clk 0:02:53.6]} 33... Kf7 {[%clk 0:00:59.8]} 34. Bd2 {[%clk 0:02:50.9]}
34... h5 {[%clk 0:00:46.2]} 35. h3 {[%clk 0:02:49]} 35... a6 {[%clk 0:00:34.6]}
36. Rd1 {[%clk 0:02:46.4]} 36... Kf6 {[%clk 0:00:32.4]} 37. a4 {[%clk
0:02:43.3]} 37... Rd8 {[%clk 0:00:31.6]} 38. h4 {[%clk 0:02:41.3]} 38... d5
{[%clk 0:00:30.6]} 39. Bg5+ {[%clk 0:02:40.4]} 39... Ke6 {[%clk 0:00:26.8]} 40.
Bxd8 {[%clk 0:02:40.3]} 40... dxc4 {[%clk 0:00:25.8]} 41. bxc4 {[%clk
0:02:38.5]} 41... c5 {[%clk 0:00:25.4]} 42. Bb6 {[%clk 0:02:36.4]} 42... Bd4
{[%clk 0:00:23.5]} 43. a5 {[%clk 0:02:33.3]} 43... Kf6 {[%clk 0:00:21.7]} 44.
Bc7 {[%clk 0:02:26.8]} 44... g5 {[%clk 0:00:20.4]} 45. Bd8+ {[%clk 0:02:25]} 1-0

[Event "Live Chess"]
[Site "Chess.com"]
[Date "2024.06.01"]
[Round "-"]
[White "bobby_jamesFischer86"]
[Black "aleksl1977"]
[Result "1-0"]
[WhiteElo "1618"]
[BlackElo "1328"]
[TimeControl "300"]
[EndTime "13:01:51 PDT"]
[Termination "bobby_jamesFischer86 won by resignation"]

1. d4 {[%clk 0:04:53.8]} 1... d5 {[%clk 0:04:58.3]} 2. c4 {[%clk 0:04:46]} 2...
c6 {[%clk 0:04:57]} 3. Nc3 {[%clk 0:04:44.4]} 3... Nf6 {[%clk 0:04:55.6]} 4. Nf3
{[%clk 0:04:42.8]} 4... e6 {[%clk 0:04:54.6]} 5. Bg5 {[%clk 0:04:40.8]} 5... Be7
{[%clk 0:04:53.6]} 6. cxd5 {[%clk 0:04:39.6]} 6... exd5 {[%clk 0:04:52.6]} 7.
Ne5 {[%clk 0:04:37.7]} 7... O-O {[%clk 0:04:51.2]} 8. e3 {[%clk 0:04:36.3]} 8...
Nbd7 {[%clk 0:04:50.2]} 9. f4 {[%clk 0:04:34.9]} 9... Nxe5 {[%clk 0:04:49]} 10.
fxe5 {[%clk 0:04:32.5]} 10... Ne4 {[%clk 0:04:42.8]} 11. Bxe7 {[%clk 0:04:27.7]}
11... Qxe7 {[%clk 0:04:41.5]} 12. Nxe4 {[%clk 0:04:26.2]} 12... dxe4 {[%clk
0:04:40.7]} 13. g3 {[%clk 0:04:22.7]} 13... Qb4+ {[%clk 0:04:37.9]} 14. Qd2
{[%clk 0:04:18.1]} 14... Qxd2+ {[%clk 0:04:26.5]} 15. Kxd2 {[%clk 0:04:14.7]}
15... Bg4 {[%clk 0:04:25.6]} 16. Bg2 {[%clk 0:03:41.1]} 16... Bf5 {[%clk
0:04:01.4]} 17. Rhf1 {[%clk 0:03:36.8]} 17... Bg6 {[%clk 0:04:00]} 18. Rf4
{[%clk 0:03:30.6]} 18... Rfd8 {[%clk 0:03:44.1]} 19. Bxe4 {[%clk 0:03:26.8]}
19... Bxe4 {[%clk 0:03:43.1]} 20. Rxe4 {[%clk 0:03:25.5]} 20... c5 {[%clk
0:03:42.2]} 21. Ke2 {[%clk 0:03:23.1]} 21... c4 {[%clk 0:03:39]} 22. a4 {[%clk
0:03:20.5]} 22... a6 {[%clk 0:03:37.7]} 23. e6 {[%clk 0:03:14]} 23... fxe6
{[%clk 0:03:32.3]} 24. Rxe6 {[%clk 0:03:12.4]} 24... Re8 {[%clk 0:03:26.8]} 25.
Rxe8+ {[%clk 0:03:08.5]} 25... Rxe8 {[%clk 0:03:25.2]} 26. Rf1 {[%clk 0:03:03]}
26... Rc8 {[%clk 0:03:22.3]} 27. e4 {[%clk 0:02:59]} 27... b5 {[%clk 0:03:20.7]}
28. axb5 {[%clk 0:02:57.1]} 28... axb5 {[%clk 0:03:19.8]} 29. d5 {[%clk
0:02:55.9]} 29... h6 {[%clk 0:03:18]} 30. Ke3 {[%clk 0:02:54.5]} 30... b4 {[%clk
0:03:14.5]} 31. Kd4 {[%clk 0:02:52.4]} 31... b3 {[%clk 0:03:13.1]} 32. Rc1
{[%clk 0:02:50.7]} 32... Kf7 {[%clk 0:03:11]} 33. Rxc4 {[%clk 0:02:49.4]} 33...
Rb8 {[%clk 0:03:07.3]} 34. e5 {[%clk 0:02:45.2]} 34... Ke7 {[%clk 0:03:06]} 35.
Rc7+ {[%clk 0:02:43.3]} 35... Kf8 {[%clk 0:03:04.7]} 36. Rc3 {[%clk 0:02:32.9]}
36... Ke7 {[%clk 0:03:02.2]} 37. Kc4 {[%clk 0:02:30.4]} 37... Rc8+ {[%clk
0:02:59]} 38. Kxb3 {[%clk 0:02:29.2]} 38... Rd8 {[%clk 0:02:57.9]} 39. Rc7+
{[%clk 0:02:25.6]} 39... Kf8 {[%clk 0:02:56]} 40. d6 {[%clk 0:02:23.6]} 1-0

[Event "Live Chess"]
[Site "Chess.com"]
[Date "2024.06.01"]
[Round "-"]
[White "Tyslcab"]
[Black "Tushinskiy"]
[Result "0-1"]
[WhiteElo "1405"]
[BlackElo "2259"]
[TimeControl "300"]
[EndTime "13:01:52 PDT"]
[Termination "Tushinskiy won by resignation"]

1. e4 {[%clk 0:04:54.1]} 1... e5 {[%clk 0:04:52]} 2. Nf3 {[%clk 0:04:52]} 2...
d6 {[%clk 0:04:51.9]} 3. d4 {[%clk 0:04:48.5]} 3... Bg4 {[%clk 0:04:49.5]} 4.
dxe5 {[%clk 0:04:38.2]} 4... Nd7 {[%clk 0:04:46.6]} 5. h3 {[%clk 0:04:32.5]}
5... Bh5 {[%clk 0:04:44.8]} 6. g4 {[%clk 0:04:26.4]} 6... Bg6 {[%clk 0:04:41.1]}
7. Nc3 {[%clk 0:04:21.5]} 7... dxe5 {[%clk 0:04:39.2]} 8. Bb5 {[%clk 0:04:13.1]}
8... c6 {[%clk 0:04:37.7]} 9. Ba4 {[%clk 0:04:10.9]} 9... Ngf6 {[%clk
0:04:29.1]} 10. Qe2 {[%clk 0:04:02.3]} 10... Bb4 {[%clk 0:04:25.6]} 11. Bd2
{[%clk 0:03:53.5]} 11... Qe7 {[%clk 0:04:22.9]} 12. O-O-O {[%clk 0:03:41.1]}
12... O-O-O {[%clk 0:03:52.2]} 13. Rhe1 {[%clk 0:03:26.1]} 13... Nc5 {[%clk
0:03:49]} 14. Bb3 {[%clk 0:03:16.3]} 14... Nxb3+ {[%clk 0:03:46]} 15. axb3
{[%clk 0:03:14.4]} 15... Rd7 {[%clk 0:03:42]} 16. Bg5 {[%clk 0:03:08.1]} 16...
Rhd8 {[%clk 0:03:40.3]} 17. Rxd7 {[%clk 0:03:04.8]} 17... Rxd7 {[%clk
0:03:38.9]} 18. Rd1 {[%clk 0:02:58.8]} 18... Rxd1+ {[%clk 0:03:37.2]} 19. Nxd1
{[%clk 0:02:52.1]} 19... Qc5 {[%clk 0:03:32.3]} 20. Be3 {[%clk 0:02:36.1]} 20...
Qa5 {[%clk 0:03:28.2]} 21. c3 {[%clk 0:02:16.1]} 21... Qa1+ {[%clk 0:03:15.4]}
22. Kd2 {[%clk 0:02:14.7]} 22... Nxe4+ {[%clk 0:03:13.6]} 23. Kd3 {[%clk
0:02:09.4]} 23... Nxc3+ {[%clk 0:03:11.5]} 24. Kc4 {[%clk 0:01:51]} 24... Nxe2
{[%clk 0:03:11.4]} 0-1

[Event "Live Chess"]
[Site "Chess.com"]
[Date "2024.06.01"]
[Round "-"]
[White "TJ-W"]
[Black "Ksenia_2013"]
[Result "1-0"]
[WhiteElo "1565"]
[BlackElo "833"]
[TimeControl "300"]
[EndTime "13:02:01 PDT"]
[Termination "TJ-W won by checkmate"]

1. e4 {[%clk 0:04:57.9]} 1... e5 {[%clk 0:04:57.3]} 2. Nf3 {[%clk 0:04:57.1]}
2... Nc6 {[%clk 0:04:55.8]} 3. Bc4 {[%clk 0:04:53.4]} 3... Nf6 {[%clk
0:04:54.1]} 4. Ng5 {[%clk 0:04:51.6]} 4... Bc5 {[%clk 0:04:48.4]} 5. Nxf7 {[%clk
0:04:39.9]} 5... Qe7 {[%clk 0:04:44.7]} 6. Nxh8 {[%clk 0:04:29.3]} 6... Qf8
{[%clk 0:04:39]} 7. Nf7 {[%clk 0:04:25.5]} 7... Nxe4 {[%clk 0:04:30.4]} 8. O-O
{[%clk 0:04:16.1]} 8... d6 {[%clk 0:04:14.2]} 9. d3 {[%clk 0:04:11.8]} 9... Qe7
{[%clk 0:04:09.2]} 10. dxe4 {[%clk 0:04:08.8]} 10... Be6 {[%clk 0:04:07.2]} 11.
Bxe6 {[%clk 0:04:04.4]} 11... Qxe6 {[%clk 0:03:54.8]} 12. Qh5 {[%clk 0:04:02.3]}
12... g6 {[%clk 0:03:50.3]} 13. Qxh7 {[%clk 0:03:59.4]} 13... Nd4 {[%clk
0:03:44.6]} 14. Qg8+ {[%clk 0:03:50.7]} 14... Ke7 {[%clk 0:03:41.6]} 15. Bg5+
{[%clk 0:03:46.8]} 15... Kd7 {[%clk 0:03:38.6]} 16. Qxa8 {[%clk 0:03:40.5]}
16... Nxc2 {[%clk 0:03:36.8]} 17. Qd8+ {[%clk 0:03:33.1]} 17... Kc6 {[%clk
0:03:33.8]} 18. Qf8 {[%clk 0:03:19.5]} 18... Nxa1 {[%clk 0:03:29.8]} 19. Nd8+
{[%clk 0:03:17.1]} 19... Kd7 {[%clk 0:03:28.1]} 20. Qg7+ {[%clk 0:03:03.1]}
20... Ke8 {[%clk 0:03:21.4]} 21. Nxe6 {[%clk 0:02:58.8]} 21... d5 {[%clk
0:03:14.2]} 22. Nxc5 {[%clk 0:02:56.1]} 22... dxe4 {[%clk 0:03:11]} 23. Qg8#
{[%clk 0:02:49.8]} 1-0